bitfinex/quotes_BTCUSD_20250414
["timestamp","ask_amount","ask_price","bid_price","bid_amount"]
[1744636130511,0.235053,85087.0,85086.0,0.12284154]
[1744636131818,0.011752,85088.0,85086.0,0.12284154]
[1744636132006,0.246803,85088.0,85086.0,0.12284154]
[1744636132409,0.011752,85090.0,85086.0,0.35789554]
[1744636132645,0.011751,85092.0,85088.0,0.011752]
[1744636132771,0.25701741,85091.0,85089.0,0.12084154]
[1744636132975,0.235045,85090.0,85089.0,0.12084154]
[1744636133624,0.235053,85087.0,85086.0,0.001]
[1744636133817,0.25702639,85087.0,85086.0,0.001]
[1744636134764,0.011754,85077.0,85074.0,0.294941]
[1744636134913,0.23508,85078.0,85075.0,0.36767954]
[1744636135257,0.246826,85080.0,85077.0,0.235079]
[1744636135554,0.246826,85080.0,85076.0,0.011754]
[1744636135555,0.235075,85079.0,85078.0,0.12084154]
[1744636135766,0.246826,85080.0,85078.0,0.12084154]
[1744636136527,0.235075,85079.0,85078.0,0.12084154]
[1744636137136,0.235075,85079.0,85078.0,0.12284154]
[1744636137714,0.235075,85079.0,85078.0,0.12084154]
[1744636137988,0.235075,85079.0,85078.0,0.12384154]
[1744636138197,0.235075,85079.0,85078.0,0.12584154]
[1744636138560,0.235075,85079.0,85078.0,0.12884154]
[1744636138968,0.246826,85080.0,85078.0,0.12884154]
[1744636139303,0.235075,85079.0,85078.0,0.12884154]
[1744636140648,0.235075,85079.0,85078.0,0.12684154]
[1744636140809,0.235075,85079.0,85078.0,0.12884154]
[1744636141411,0.235075,85079.0,85078.0,0.12084154]
[1744636141598,0.235075,85079.0,85078.0,0.12584154]
[1744636141981,0.235075,85079.0,85078.0,0.12284154]
[1744636142220,0.235075,85079.0,85078.0,0.12484154]
[1744636142676,0.235075,85079.0,85078.0,0.004]
[1744636143380,0.624075,85079.0,85078.0,0.004]
[1744636143581,0.63861585,85079.0,85078.0,0.004]
[1744636143814,0.63861585,85079.0,85078.0,0.002]
[1744636144017,0.66057581,85079.0,85078.0,0.002]
[1744636144501,0.58963485,85072.0,85071.0,0.002]
[1744636144692,0.82153485,85072.0,85071.0,1e-06]
[1744636145324,1.35887639,85072.0,85071.0,1e-06]
[1744636145486,1.36985385,85072.0,85071.0,1e-06]
[1744636146414,1.23447146,85072.0,85071.0,1e-06]
[1744636146624,1.24901231,85072.0,85071.0,1e-06]
[1744636148025,1.36985385,85072.0,85071.0,1e-06]
[1744636149354,1.24901231,85072.0,85071.0,1e-06]
[1744636149554,1.20371231,85072.0,85071.0,1e-06]
[1744636151706,1.34662609,85072.0,85071.0,1e-06]
[1744636152131,1.32455385,85072.0,85071.0,1e-06]
[1744636152900,1.20371231,85072.0,85071.0,1e-06]
[1744636153327,1.32455385,85072.0,85071.0,1e-06]
[1744636153521,1.37165385,85072.0,85071.0,1e-06]
[1744636164011,1.37265385,85072.0,85071.0,1e-06]
[1744636164423,1.37165385,85072.0,85071.0,1e-06]
[1744636164876,1.36167639,85072.0,85071.0,1e-06]
[1744636165024,0.58966285,85062.0,85055.0,5e-07]
[1744636165223,0.05,85063.0,85051.0,1e-06]
[1744636165224,0.57515,85052.0,85051.0,1e-06]
[1744636165432,1.13253,85052.0,85051.0,1e-06]
[1744636166301,0.575177,85042.0,85041.0,0.002]
[1744636166512,0.58971785,85042.0,85041.0,1e-06]
[1744636167696,0.59271785,85042.0,85041.0,1e-06]
[1744636168036,0.60166051,85042.0,85041.0,1e-06]
[1744636168268,0.64996051,85042.0,85036.0,5e-07]
[1744636168468,0.58973185,85037.0,85036.0,5e-07]
[1744636168581,0.71057339,85037.0,85036.0,5e-07]
[1744636168786,0.72220164,85037.0,85036.0,5e-07]
[1744636169630,1.13870164,85037.0,85036.0,5e-07]
[1744636170019,1.13970164,85037.0,85036.0,5e-07]
[1744636170242,1.20973867,85037.0,85036.0,5e-07]
[1744636170483,1.13970164,85037.0,85036.0,5e-07]
[1744636172145,1.18890164,85037.0,85036.0,5e-07]
[1744636173087,1.18790164,85037.0,85036.0,5e-07]
[1744636173446,1.19190164,85037.0,85036.0,5e-07]
[1744636173727,1.31363012,85037.0,85036.0,5e-07]
[1744636174089,2.41287012,85037.0,85036.0,5e-07]
[1744636174502,2.41487012,85037.0,85036.0,5e-07]
[1744636174730,2.29414164,85037.0,85036.0,5e-07]
[1744636175549,2.29414164,85037.0,85011.0,0.002]
[1744636175550,0.23526,85012.0,85011.0,0.002]
[1744636176118,0.57526,85012.0,85011.0,0.002]
[1744636176660,0.57526,85012.0,85011.0,0.004]
[1744636176857,0.58980085,85012.0,85011.0,0.004]
[1744636177068,0.58980085,85012.0,85011.0,0.008]
[1744636177468,0.58980085,85012.0,85011.0,0.006]
[1744636177713,0.59180085,85012.0,85011.0,0.006]
[1744636178335,0.59180085,85012.0,85011.0,0.002]
[1744636178527,0.59480085,85012.0,85011.0,0.002]
[1744636180025,0.59480085,85012.0,85006.0,0.0004225]
[1744636180225,0.59480085,85012.0,85006.0,5e-07]
[1744636180226,0.24981485,85007.0,85006.0,5e-07]
[1744636181158,0.37065639,85007.0,85006.0,5e-07]
[1744636181289,0.71065639,85007.0,85006.0,5e-07]
[1744636182125,0.71165639,85007.0,85006.0,5e-07]
[1744636182921,0.71265639,85007.0,85006.0,5e-07]
[1744636184204,1.12915639,85007.0,85006.0,5e-07]
[1744636184606,1.27007639,85007.0,85006.0,5e-07]
[1744636185536,1.134694,85007.0,85006.0,0.0460005]
[1744636186762,1.14923485,85007.0,85006.0,5e-07]
[1744636192005,1.14923485,85007.0,85001.0,0.0004227]
[1744636192006,0.58982085,85005.0,85004.0,1e-06]
[1744636193131,0.60177857,85005.0,85004.0,1e-06]
[1744636194322,0.60277857,85005.0,85004.0,1e-06]
[1744636195141,0.60277857,85005.0,84992.0,0.0004225]
[1744636195142,0.58985385,84993.0,84992.0,2e-07]
[1744636196242,0.575313,84993.0,84992.0,0.0471002]
[1744636196915,0.575313,84993.0,84992.0,2e-07]
[1744636197120,0.575313,84993.0,84992.0,0.0010002]
[1744636197325,0.601869,84993.0,84992.0,0.0030002]
[1744636197901,0.61052537,84993.0,84992.0,0.0030002]
[1744636198300,0.59598452,84993.0,84992.0,0.0030002]
[1744636202982,0.58396937,84993.0,84992.0,0.0030002]
[1744636203286,0.575313,84993.0,84992.0,0.0030002]
[1744636205210,0.235313,84993.0,84992.0,0.0030002]
[1744636206753,0.235313,84993.0,84992.0,0.0508002]
[1744636206976,0.235313,84993.0,84992.0,0.0985002]
[1744636208198,0.235313,84993.0,84992.0,0.21934174]
[1744636210730,0.235313,84993.0,84992.0,0.0985002]
[1744636213015,0.235313,84993.0,84992.0,0.0030002]
[1744636213448,0.575313,84993.0,84992.0,2e-07]
[1744636214039,0.73029385,84993.0,84992.0,2e-07]
[1744636215057,0.76330555,84993.0,84992.0,2e-07]
[1744636215257,0.575343,84982.0,84981.0,0.002]
[1744636217578,0.575343,84982.0,84981.0,0.003]
[1744636217979,0.575343,84982.0,84981.0,0.004]
[1744636218825,0.575343,84982.0,84981.0,1e-06]
[1744636219051,0.58988385,84982.0,84981.0,1e-06]
[1744636220846,0.235371,84972.0,84966.0,0.0475]
[1744636222064,0.235371,84972.0,84971.0,0.0014227]
[1744636223082,0.235371,84972.0,84971.0,0.0024227]
[1744636224230,0.24991185,84972.0,84971.0,0.0004227]
[1744636226017,0.58991185,84972.0,84971.0,7e-07]
[1744636226166,0.60089718,84972.0,84971.0,7e-07]
[1744636227713,0.76812147,84972.0,84971.0,7e-07]
[1744636227947,1.13823872,84972.0,84971.0,7e-07]
[1744636228525,1.18463872,84972.0,84971.0,7e-07]
[1744636229052,1.01739718,84972.0,84971.0,7e-07]
[1744636230518,1.02039718,84972.0,84971.0,7e-07]
[1744636231468,1.02239718,84972.0,84971.0,7e-07]
[1744636232279,1.3102672,84972.0,84971.0,7e-07]
[1744636232678,1.3102672,84972.0,84958.0,0.0004229]
[1744636232679,0.39984085,84971.0,84958.0,0.0004229]
[1744636232912,0.0481,84965.0,84958.0,0.0004229]
[1744636233044,0.01454085,84962.0,84958.0,0.0004229]
[1744636233264,0.35454085,84960.0,84958.0,0.0004229]
[1744636233449,0.49458085,84959.0,84958.0,0.0004229]
[1744636233654,0.51651702,84959.0,84958.0,0.0004229]
[1744636233874,1.05385856,84959.0,84958.0,0.0004229]
[1744636234075,1.06484389,84959.0,84958.0,0.0004229]
[1744636234451,1.06484389,84959.0,84958.0,0.0014229]
[1744636235404,1.06484389,84959.0,84958.0,0.0024229]
[1744636235802,1.06484389,84959.0,84958.0,0.0004229]
[1744636235982,0.94400235,84959.0,84958.0,0.0004229]
[1744636236384,0.94500235,84959.0,84958.0,0.0004229]
[1744636236760,0.94600235,84959.0,84958.0,0.0004229]
[1744636236962,0.95809083,84959.0,84958.0,0.0004229]
[1744636238115,0.94354998,84959.0,84958.0,0.0004229]
[1744636238252,0.92161381,84959.0,84958.0,0.0004229]
[1744636238771,0.92361381,84959.0,84958.0,0.0004229]
[1744636239153,0.92161381,84959.0,84958.0,0.0004229]
[1744636239757,0.90862848,84959.0,84958.0,0.0004229]
[1744636240418,0.7565,84959.0,84958.0,0.0004229]
[1744636241234,0.14008,84981.0,84958.0,0.17066444]
[1744636241396,0.16464028,84970.0,84958.0,0.0498229]
[1744636243165,1.26564028,84980.0,84959.0,0.12084154]
[1744636243392,1.27450661,84980.0,84959.0,0.12084154]
[1744636243581,0.14008,84979.0,84959.0,0.12084154]
[1744636243819,0.14008,84979.0,84959.0,0.12184154]
[1744636244166,0.14008,84979.0,84959.0,0.12084154]
[1744636244353,0.34,84978.0,84959.0,0.12184154]
[1744636244553,0.34,84978.0,84959.0,0.12084154]
[1744636244955,0.34,84978.0,84959.0,0.12184154]
[1744636245381,0.34,84978.0,84960.0,0.01177]
[1744636245696,0.01154481,84978.0,84961.0,0.0467]
[1744636246160,0.48008,84979.0,84961.0,0.0467]
[1744636247202,0.48008,84979.0,84961.0,0.0477]
[1744636247401,0.48008,84979.0,84961.0,0.0467]
[1744636247820,0.48008,84979.0,84962.0,0.21574154]
[1744636249092,0.34,84971.0,84962.0,0.0969]
[1744636250167,0.34,84978.0,84962.0,0.0999]
[1744636250338,0.34,84978.0,84962.0,0.0969]
[1744636250670,0.34,84978.0,84962.0,0.0999]
[1744636251082,0.34,84978.0,84962.0,0.0979]
[1744636251284,0.34,84978.0,84962.0,0.0999]
[1744636251449,0.34,84978.0,84962.0,0.0969]
[1744636251650,0.34,84978.0,84962.0,0.0979]
[1744636252021,0.34,84978.0,84962.0,0.0999]
[1744636252945,0.15165937,84979.0,84962.0,0.0999]
[1744636253147,0.34,84978.0,84962.0,0.0999]
[1744636254612,0.34,84978.0,84962.0,0.0979]
[1744636254807,0.34,84978.0,84962.0,0.22074154]
[1744636255425,0.34,84978.0,84962.0,0.21874154]
[1744636255723,0.34,84978.0,84962.0,0.22074154]
[1744636255886,0.34,84978.0,84963.0,0.0493]
[1744636257069,0.15165937,84979.0,84963.0,0.0493]
[1744636257329,0.15165937,84979.0,84963.0,0.0543]
[1744636257330,0.34,84978.0,84963.0,0.0543]
[1744636257969,0.34,84978.0,84963.0,0.0523]
[1744636258153,0.34,84978.0,84963.0,0.0513]
[1744636258367,0.34,84978.0,84963.0,0.0543]
[1744636258662,0.34,84978.0,84963.0,0.0523]
[1744636259081,0.34,84978.0,84964.0,0.12084154]
[1744636260440,0.34,84978.0,84964.0,0.12284154]
[1744636260665,0.34,84978.0,84964.0,0.12584154]
[1744636261443,0.34,84978.0,84964.0,0.005]
[1744636261663,0.38410244,84978.0,84964.0,0.005]
[1744636262657,0.34,84978.0,84964.0,0.005]
[1744636266086,0.15309937,84979.0,84964.0,0.005]
[1744636266910,0.15309937,84979.0,84964.0,0.003]
[1744636267373,0.15309937,84979.0,84963.0,0.0493]
[1744636267752,0.15309937,84979.0,84964.0,0.005]
[1744636268131,0.15309937,84979.0,84964.0,0.003]
[1744636268341,0.34,84978.0,84965.0,0.0479]
[1744636270510,0.34,84978.0,84965.0,0.0489]
[1744636270708,0.34,84978.0,84965.0,0.0509]
[1744636277390,0.34,84978.0,84965.0,0.0489]
[1744636277866,0.34,84978.0,84965.0,0.0509]
[1744636278070,0.34,84978.0,84965.0,0.0489]
[1744636278276,0.34,84978.0,84965.0,0.0509]
[1744636278566,0.34,84978.0,84965.0,0.0499]
[1744636278918,0.34,84978.0,84965.0,0.0509]
[1744636279114,0.2974994,84978.0,84965.0,0.0509]
[1744636279328,0.2974994,84978.0,84965.0,0.0499]
[1744636279531,0.2974994,84978.0,84965.0,0.0479]
[1744636279863,0.2974994,84978.0,84965.0,0.0509]
[1744636281577,0.2974994,84978.0,84965.0,0.0499]
[1744636284136,0.35157937,84979.0,84965.0,0.0499]
[1744636284338,0.34,84976.0,84965.0,0.0499]
[1744636284738,0.4165,84985.0,84974.0,0.0477]
[1744636284942,0.14064,84992.0,84988.0,0.0488]
[1744636285137,0.14064,84992.0,84989.0,0.0493]
[1744636285350,0.14064,85005.0,84989.0,0.0493]
[1744636285515,0.34,85004.0,84989.0,0.0493]
[1744636286361,0.34892404,85004.0,84989.0,0.0493]
[1744636286584,0.36095383,85004.0,84989.0,0.0493]
[1744636287370,0.36095383,85004.0,84990.0,0.0496]
[1744636288675,0.36195383,85004.0,84990.0,0.0496]
[1744636288878,0.36195383,85004.0,84991.0,0.12084154]
[1744636289079,0.36195383,85004.0,84992.0,0.0469]
[1744636289937,0.35584056,85004.0,84992.0,0.0469]
[1744636290148,0.35484056,85004.0,84992.0,0.0469]
[1744636290355,0.35584056,85004.0,84992.0,0.0469]
[1744636290556,0.34691652,85004.0,84998.0,0.0469]
[1744636291134,0.34591652,85004.0,84998.0,0.0469]
[1744636291420,0.35481237,85004.0,84998.0,0.0469]
[1744636291589,0.35581237,85004.0,84998.0,0.0469]
[1744636292026,0.35581237,85004.0,85001.0,0.011764]
[1744636292027,0.34691652,85004.0,85001.0,0.011764]
[1744636292223,0.001,85004.0,85001.0,0.12084154]
[1744636292420,0.001,85004.0,85003.0,0.235285]
[1744636292598,0.001,85004.0,85003.0,0.40232654]
[1744636292997,0.00712958,85004.0,85003.0,0.40232654]
[1744636293199,0.00712958,85004.0,85003.0,0.44752654]
[1744636293401,0.00612958,85004.0,85003.0,0.44752654]
[1744636293973,0.00612958,85004.0,85003.0,0.44952654]
[1744636295640,0.00612958,85004.0,85003.0,0.45152654]
[1744636296057,0.00612958,85004.0,85003.0,0.44952654]
[1744636296211,0.00612958,85004.0,85003.0,0.44752654]
[1744636296414,0.00612958,85004.0,85003.0,0.45352654]
[1744636296856,0.00612958,85004.0,85003.0,0.45052654]
[1744636297064,0.00612958,85004.0,85003.0,0.45452654]
[1744636297487,0.0008458,85026.0,85012.0,0.33036]
[1744636297659,0.0008458,85026.0,85012.0,0.59180154]
[1744636298466,0.0008458,85026.0,85012.0,0.45120154]
[1744636298663,0.0008458,85026.0,85012.0,0.21994154]
[1744636299226,0.0008458,85026.0,85012.0,0.21594154]
[1744636299399,0.0008458,85026.0,85012.0,0.22094154]
[1744636299575,0.0008458,85026.0,85012.0,0.22594154]
[1744636299976,0.0008458,85026.0,85012.0,0.22094154]
[1744636300381,0.0008458,85026.0,85012.0,0.22794154]
[1744636300856,0.0008458,85026.0,85012.0,0.21594154]
[1744636301042,0.0008458,85026.0,85012.0,0.22329391]
[1744636301288,0.0008458,85026.0,85012.0,0.22229391]
[1744636301563,0.0008458,85026.0,85012.0,0.45755391]
[1744636301768,0.0008458,85026.0,85012.0,0.45120154]
[1744636301937,0.0008458,85026.0,85012.0,0.45520154]
[1744636302540,0.0008458,85026.0,85012.0,0.46120154]
[1744636302738,0.0008458,85026.0,85012.0,0.45520154]
[1744636302951,0.0008458,85026.0,85012.0,0.45120154]
[1744636303150,0.0008458,85026.0,85012.0,0.45620154]
[1744636303367,0.0008458,85026.0,85012.0,0.45120154]
[1744636303684,0.0008458,85026.0,85012.0,0.45720154]
[1744636304249,0.0008458,85026.0,85012.0,0.46120154]
[1744636304791,0.0008458,85026.0,85012.0,0.45720154]
[1744636305115,0.0008458,85026.0,85012.0,0.46120154]
[1744636307469,0.0008458,85026.0,85012.0,0.87990154]
[1744636311193,0.0008458,85026.0,85012.0,1.02046154]
[1744636318885,0.0008458,85026.0,85012.0,1.01942154]
[1744636319321,0.0008458,85026.0,85012.0,0.73456154]
[1744636319629,0.0008458,85026.0,85012.0,0.83030154]
[1744636320411,0.0008458,85026.0,85012.0,0.82630154]
[1744636320612,0.0008458,85026.0,85012.0,0.83030154]
[1744636321117,0.0008458,85026.0,85012.0,0.82630154]
[1744636321475,0.0008458,85026.0,85012.0,1.01882154]
[1744636321694,0.0008458,85026.0,85012.0,1.01282154]
[1744636322110,0.0008458,85026.0,85012.0,1.01882154]
[1744636322367,0.0008458,85026.0,85012.0,1.01282154]
[1744636322526,0.0008458,85026.0,85012.0,1.01482154]
[1744636322866,0.0008458,85026.0,85012.0,1.00882154]
[1744636323023,0.0008458,85026.0,85012.0,1.01282154]
[1744636323225,0.0008458,85026.0,85012.0,1.01982154]
[1744636323437,0.0008458,85026.0,85012.0,1.00882154]
[1744636323823,0.001846,85013.0,85012.0,1.01482154]
[1744636324492,0.000846,85013.0,85012.0,1.00882154]
[1744636324634,0.000846,85013.0,85012.0,1.01382154]
[1744636325553,0.000846,85013.0,85012.0,1.01782154]
[1744636331332,0.000846,85013.0,85012.0,0.64304154]
[1744636331543,0.000846,85013.0,85012.0,0.68806154]
[1744636332174,0.000846,85013.0,85012.0,0.54854154]
[1744636332371,0.000846,85013.0,85012.0,0.54454154]
[1744636333592,0.000846,85013.0,85012.0,0.53954154]
[1744636333771,0.000846,85013.0,85012.0,0.54354154]
[1744636333997,0.000846,85013.0,85012.0,0.54754154]
[1744636334354,0.000846,85013.0,85012.0,0.54354154]
[1744636334524,0.000846,85013.0,85012.0,0.54754154]
[1744636334931,0.000846,85013.0,85012.0,0.4267]
[1744636335435,0.000846,85013.0,85012.0,0.008]
[1744636335814,0.049646,85013.0,85012.0,0.008]
[1744636336039,0.049646,85013.0,85012.0,0.004]
[1744636336246,0.06119398,85013.0,84996.0,0.13952]
[1744636336582,0.06119398,85013.0,85012.0,0.004]
[1744636336876,0.06119398,85013.0,85012.0,0.008]
[1744636337069,0.06119398,85013.0,85012.0,0.004]
[1744636337302,0.06119398,85013.0,84977.0,0.011767]
[1744636337451,0.34,85009.0,84996.0,0.014]
[1744636337862,0.34,85009.0,84997.0,0.12084154]
[1744636338442,0.0467,85011.0,84997.0,0.12084154]
[1744636339679,0.0467,85011.0,84997.0,0.12484154]
[1744636339826,0.0467,85011.0,84997.0,0.12884154]
[1744636340029,0.0467,85011.0,84997.0,0.13284154]
[1744636340304,0.0467,85011.0,84997.0,0.12884154]
[1744636340430,0.0467,85011.0,84997.0,0.12084154]
[1744636340658,0.0467,85011.0,84997.0,0.12684154]
[1744636341047,0.0467,85011.0,84997.0,0.12384154]
[1744636341389,0.000846,85013.0,85001.0,0.011764]
[1744636341567,0.000846,85013.0,85002.0,0.12084154]
[1744636341743,0.000846,85013.0,85002.0,0.35612854]
[1744636341942,0.000846,85013.0,85002.0,0.12084154]
[1744636342818,0.000846,85013.0,85002.0,0.35612754]
[1744636343018,0.000846,85013.0,85005.0,0.235279]
[1744636343175,0.000846,85013.0,85006.0,0.12084154]
[1744636344565,0.000846,85013.0,85006.0,0.12284154]
[1744636345479,0.000846,85013.0,85007.0,0.00235249]
[1744636345686,0.000846,85013.0,85008.0,0.12084154]
[1744636346234,0.000846,85013.0,85006.0,0.002]
[1744636346523,0.000846,85013.0,85006.0,0.12084154]
[1744636346819,0.000846,85013.0,85007.0,0.001]
[1744636347120,0.000846,85013.0,85006.0,0.12084154]
[1744636347528,0.0458,85012.0,85006.0,0.002]
[1744636347728,0.0466,85011.0,85006.0,0.002]
[1744636348817,0.0466,85011.0,84988.0,0.13864]
[1744636349019,0.16464028,85010.0,84989.0,0.12084154]
[1744636349210,0.16464028,85010.0,85006.0,0.001]
[1744636349400,0.0466,85011.0,85006.0,0.001]
[1744636349733,0.0466,85011.0,84989.0,0.12084154]
[1744636350292,0.0466,85011.0,84990.0,0.00235296]
[1744636350521,0.0466,85011.0,84991.0,0.12084154]
[1744636350695,0.0466,85011.0,85006.0,0.001]
[1744636352955,0.0466,85011.0,84991.0,0.12084154]
[1744636353480,0.3866,85011.0,84991.0,0.12084154]
[1744636354359,0.3866,85011.0,85006.0,0.001]
[1744636355976,0.3866,85011.0,84991.0,0.12084154]
[1744636356195,0.3866,85011.0,84991.0,0.12484154]
[1744636356660,0.3866,85011.0,84991.0,0.12084154]
[1744636357173,0.3866,85011.0,85006.0,0.001]
[1744636357625,0.3866,85011.0,84991.0,0.12084154]
[1744636357840,0.3866,85011.0,84991.0,0.12484154]
[1744636358302,0.3866,85011.0,84992.0,0.235316]
[1744636358483,0.3866,85011.0,84993.0,0.12084154]
[1744636358747,0.0466,85011.0,84993.0,0.35615354]
[1744636358976,0.0466,85011.0,84994.0,0.23531]
[1744636359193,0.0466,85011.0,84995.0,0.12084154]
[1744636359475,0.0466,85011.0,84996.0,0.00235296]
[1744636359663,0.0466,85011.0,85006.0,0.001]
[1744636360161,0.0466,85011.0,84997.0,0.35614354]
[1744636360162,0.0466,85011.0,84997.0,0.12084154]
[1744636360645,0.000846,85013.0,84999.0,0.011764]
[1744636360883,0.000846,85013.0,85002.0,0.235286]
[1744636361119,0.000846,85013.0,84998.0,0.05941675]
[1744636361120,0.000846,85013.0,85003.0,0.12084154]
[1744636363166,0.000846,85013.0,85003.0,0.12384154]
[1744636363426,0.000846,85013.0,85003.0,0.35912454]
[1744636363631,0.000846,85013.0,85004.0,0.235281]
[1744636363830,0.000846,85013.0,85005.0,0.12084154]
[1744636364487,0.000846,85013.0,85006.0,0.235276]
[1744636364626,0.000846,85013.0,85007.0,0.35611454]
[1744636365980,0.000846,85013.0,85009.0,0.235268]
[1744636366224,0.000846,85013.0,85010.0,0.12084154]
[1744636366991,0.000846,85013.0,85010.0,0.35610654]
[1744636367216,0.000846,85013.0,85010.0,0.12084154]
[1744636367739,0.000846,85013.0,85011.0,0.235263]
[1744636367896,0.001846,85013.0,85012.0,0.12084154]
[1744636368120,0.000846,85013.0,85012.0,0.35610154]
[1744636368803,0.000846,85013.0,85012.0,0.16994154]
[1744636369345,0.000846,85013.0,85012.0,0.40520154]
[1744636369561,0.000846,85013.0,85012.0,0.40720154]
[1744636372590,0.000846,85013.0,85012.0,0.17194154]
[1744636372745,0.000846,85013.0,85012.0,0.12284154]
[1744636376436,0.000846,85013.0,85012.0,0.002]
[1744636381578,0.000846,85013.0,85012.0,0.35810154]
[1744636381783,0.000846,85013.0,85012.0,0.12284154]
[1744636387110,0.000846,85013.0,85012.0,0.35810154]
[1744636387896,0.000846,85013.0,85012.0,0.12284154]
[1744636388196,0.000846,85013.0,85012.0,0.35810154]
[1744636390481,0.000846,85013.0,85012.0,0.12284154]
[1744636391418,0.000846,85013.0,85012.0,0.35810154]
[1744636393331,0.000846,85013.0,85012.0,0.12284154]
[1744636394281,0.000846,85013.0,85012.0,0.35810154]
[1744636394506,0.000846,85013.0,85012.0,0.12284154]
[1744636397363,0.000846,85013.0,85012.0,0.40865389]
[1744636397541,0.000846,85013.0,85012.0,0.40630154]
[1744636401340,0.000846,85013.0,85012.0,0.17104154]
[1744636401780,0.000846,85013.0,85012.0,0.40630154]
[1744636402360,0.000846,85013.0,85012.0,0.17104154]
[1744636402774,0.000846,85013.0,85012.0,0.40630154]
[1744636403669,0.000846,85013.0,85012.0,0.17104154]
[1744636403882,0.000846,85013.0,85012.0,0.12284154]
[1744636406785,0.000846,85013.0,85012.0,0.35810154]
[1744636407430,0.000846,85013.0,85012.0,0.12284154]
[1744636407635,0.000846,85013.0,85012.0,0.35810154]
[1744636410323,0.000846,85013.0,85012.0,0.40630154]
[1744636416705,0.000846,85013.0,85012.0,0.35810154]
[1744636421342,0.010846,85013.0,85012.0,0.35810154]
[1744636421739,0.010846,85013.0,85012.0,0.12284154]
[1744636422066,0.010846,85013.0,85012.0,0.35810154]
[1744636422627,0.010846,85013.0,85012.0,0.12284154]
[1744636423375,0.010846,85013.0,85012.0,0.002]
[1744636425673,0.010846,85013.0,85012.0,0.12284154]
[1744636425880,0.010846,85013.0,85012.0,0.35810154]
[1744636426815,0.010846,85013.0,85012.0,0.40310154]
[1744636427019,0.010846,85013.0,85012.0,0.82180154]
[1744636427144,0.010846,85013.0,85012.0,0.82380154]
[1744636427351,0.010846,85013.0,85012.0,0.82180154]
[1744636427563,0.010846,85013.0,85012.0,0.82080154]
[1744636427765,0.010846,85013.0,85012.0,0.82580154]
[1744636429007,0.010846,85013.0,85012.0,0.82780154]
[1744636429398,0.010846,85013.0,85012.0,0.82580154]
[1744636429719,0.010846,85013.0,85012.0,0.82980154]
[1744636430428,0.0008458,85036.0,85025.0,0.282524]
[1744636430622,0.0008458,85036.0,85025.0,0.40336554]
[1744636432317,0.0008458,85036.0,85025.0,0.40436554]
[1744636432926,0.0008458,85036.0,85025.0,0.41693065]
[1744636433129,0.0008458,85036.0,85025.0,0.55385065]
[1744636433549,0.0008458,85036.0,85025.0,1.01775065]
[1744636433692,0.0008458,85036.0,85025.0,1.01675065]
[1744636434094,0.0008458,85036.0,85025.0,1.01575065]
[1744636434296,0.0008458,85036.0,85025.0,1.0302915]
[1744636434545,0.0008458,85036.0,85025.0,1.0322915]
[1744636435138,0.0008458,85036.0,85025.0,1.0352915]
[1744636435518,0.0008458,85036.0,85025.0,1.02075065]
[1744636435723,0.0008458,85036.0,85025.0,1.01575065]
[1744636435932,0.0008458,85036.0,85025.0,1.02075065]
[1744636436134,0.0008458,85036.0,85025.0,1.02775065]
[1744636442719,8e-07,85026.0,85025.0,1.3822915]
[1744636443062,8e-07,85026.0,85025.0,1.43229083]
[1744636443491,8e-07,85026.0,85025.0,1.43329083]
[1744636443910,8e-07,85026.0,85025.0,1.42629083]
[1744636444248,8e-07,85026.0,85025.0,1.42929083]
[1744636444591,8e-07,85026.0,85025.0,1.43529083]
[1744636445050,8e-07,85026.0,85025.0,1.42929083]
[1744636445429,8e-07,85026.0,85025.0,1.43529083]
[1744636451500,8e-07,85026.0,85025.0,1.43429083]
[1744636451879,8e-07,85026.0,85025.0,1.36975065]
[1744636452108,8e-07,85026.0,85025.0,1.41974998]
[1744636454068,8e-07,85026.0,85025.0,1.32455065]
[1744636454286,8e-07,85026.0,85025.0,0.93725065]
[1744636454472,8e-07,85026.0,85025.0,1.27725065]
[1744636455073,8e-07,85026.0,85025.0,1.27125065]
[1744636455259,8e-07,85026.0,85025.0,1.27725065]
[1744636455458,8e-07,85026.0,85025.0,1.26925065]
[1744636455672,8e-07,85026.0,85025.0,1.27725065]
[1744636456218,8e-07,85026.0,85025.0,1.28425065]
[1744636456637,8e-07,85026.0,85025.0,1.27825065]
[1744636456918,8e-07,85026.0,85025.0,1.33225065]
[1744636460120,8e-07,85026.0,85025.0,1.28425065]
[1744636461318,8e-07,85026.0,85025.0,1.27825065]
[1744636461688,8e-07,85026.0,85025.0,1.28425065]
[1744636462041,8e-07,85026.0,85025.0,1.26925065]
[1744636462403,8e-07,85026.0,85025.0,1.27625065]
[1744636462606,8e-07,85026.0,85025.0,1.26925065]
[1744636463028,8e-07,85026.0,85025.0,1.27025065]
[1744636463369,8e-07,85026.0,85025.0,1.27625065]
[1744636463896,8e-07,85026.0,85025.0,1.27025065]
[1744636464383,8e-07,85026.0,85025.0,1.27625065]
[1744636465058,8e-07,85026.0,85025.0,1.26925065]
[1744636465461,8e-07,85026.0,85025.0,1.27625065]
[1744636474555,8e-07,85026.0,85025.0,1.27621065]
[1744636477264,0.00183169,85039.0,85038.0,0.235188]
[1744636477459,0.00183169,85039.0,85038.0,0.35602954]
[1744636478550,0.00183169,85039.0,85038.0,0.35902954]
[1744636479065,0.00183169,85039.0,85038.0,0.36302954]
[1744636481516,0.00058207,85039.0,85038.0,0.36302954]
[1744636485177,0.00058207,85039.0,85038.0,0.36302954]
[1744636485785,0.00033891,85042.0,85041.0,0.23518]
[1744636485903,0.00033891,85042.0,85041.0,0.35602154]
[1744636487498,0.00033891,85042.0,85041.0,0.35902154]
[1744636487773,0.00033891,85042.0,85041.0,0.36202154]
[1744636507065,0.00033891,85042.0,85041.0,0.78072154]
[1744636509428,0.00033891,85042.0,85041.0,1.12072154]
[1744636509628,0.00033891,85042.0,85041.0,1.16852154]
[1744636510214,0.00033891,85042.0,85041.0,1.16552154]
[1744636510766,0.00033891,85042.0,85041.0,1.16652154]
[1744636510973,0.00033891,85042.0,85041.0,0.83152154]
[1744636511196,0.00033891,85042.0,85041.0,0.77972154]